[Event "95th Caplin Hastings Congress"]
[Site "Hastings"]
[Date "2019.12.30"]
[Round "3.6"]
[White "Korneev, Oleg"]
[Black "Terentiev, Sergei"]
[Result "1-0"]
[ECO "B38"]
[WhiteElo "2524"]
[BlackElo "2292"]
[Annotator "ChessBase"]
[PlyCount "75"]
[EventDate "2019.12.28"]
[EventType "swiss"]
[EventCountry "ENG"]
[SourceTitle "playchess.com"]
[Source "ChessBase"]
[SourceQuality "1"]
[TimeControl "40/6600+30:3000+30"]

1. e4 {[%emt 0:21:09]} c5 {[%emt 0:10:03]} 2. Nf3 {[%emt 0:00:06]} g6 {[%emt 0:00:15]} 3. d4 {[%emt 0:00:10]} cxd4 {[%emt 0:00:07]} 4. Nxd4 {[%emt 0:00:03]} Bg7 {[%emt 0:00:38]} 5. c4 {[%emt 0:03:28]} Nf6 {[%emt 0:02:37]} 6. Nc3 {[%emt 0:00:06]} O-O {[%emt 0:00:09]} 7. Be2 {[%emt 0:00:26]} Nc6 {[%emt 0:07:29]} 8. Be3 {[%emt 0:00:06]} d6 {[%emt 0:00:08]} 9. O-O {[%emt 0:00:04]} Bd7 {[%emt 0:01:14]} 10. Qd2 {[%emt 0:00:41]} Ng4 {[%emt 0:02:56]} 11. Bxg4 {[%emt 0:03:09]} Bxg4 {[%emt 0:00:10]} 12. h3 {[%emt 0:02:16]} Bd7 {[%emt 0:02:06]} 13. Rfd1 {[%emt 0:18:59]} f5 {[%emt 0:03:40]} 14. exf5 {[%emt 0:05:01]} gxf5 {[%emt 0:01:26]} 15. Nde2 {[%emt 0:08:40]} Kh8 {[%emt 0:14:46]} 16. c5 {[%emt 0:02:28]} Ne5 {[%emt 0:08:48]} 17. cxd6 {[%emt 0:00:41]} Rg8 {[%emt 0:00:06]} 18. Bg5 {[%emt 0:17:00]} Bf6 {[%emt 0:09:20]} 19. Bxf6+ {[%emt 0:09:34]} exf6 {[%emt 0:00:51]} 20. Ng3 {[%emt 0:00:35]} Qb6 {[%emt 0:09:04]} 21. Qd4 {[%emt 0:03:44]} Bc6 {[%emt 0:02:13]} 22. Nd5 {[%emt 0:06:17]} Qxd4 {[%emt 0:05:33]} 23. Rxd4 {[%emt 0:00:02]} Bxd5 {[%emt 0:00:11]} 24. Rxd5 {[%emt 0:00:02]} f4 {[%emt 0:00:06]} 25. Nh5 {[%emt 0:03:43]} f3 {[%emt 0:00:28]} 26. g3 {[%emt 0:00:44]} Nd7 {[%emt 0:03:25]} 27. Re1 {[%emt 0:00:11]} Rac8 {[%emt 0:00:20]} 28. Rf5 {[%emt 0:02:08]} Rg5 {[%emt 0:03:06]} 29. Rxg5 {[%emt 0:00:24]} fxg5 {[%emt 0:00:06]} 30. Re7 {[%emt 0:00:26]} Rd8 {[%emt 0:00:08]} 31. g4 {[%emt 0:04:59]} h6 {[%emt 0:01:16]} 32. Kh2 {[%emt 0:03:14]} Nf8 {[%emt 0:00:26]} 33. Nf6 {[%emt 0:00:31]} Rxd6 {[%emt 0:01:15]} 34. Rf7 {[%emt 0:00:06]} Rd8 {[%emt 0:00:04]} 35. Rxb7 {[%emt 0:00:05]} a5 {[%emt 0:00:22]} 36. b3 {[%emt 0:00:50]} Rd6 {[%emt 0:01:45]} 37. Rf7 {[%emt 0:00:07]} Rd8 {[%emt 0:00:04]} 38. Kg3 {[%emt 0:00:02]} 1-0

[Event "95th Caplin Hastings Congress"]
[Site "Hastings"]
[Date "2019.12.30"]
[Round "3.7"]
[White "Petrov, Vladimir Sergeev"]
[Black "Petrov, Martin"]
[Result "0-1"]
[ECO "B12"]
[WhiteElo "2355"]
[BlackElo "2497"]
[Annotator "ChessBase"]
[PlyCount "53"]
[EventDate "2019.12.28"]
[EventType "swiss"]
[EventCountry "ENG"]
[SourceTitle "playchess.com"]
[Source "ChessBase"]
[SourceQuality "1"]
[TimeControl "40/6600+30:3000+30"]

1. e4 {[%emt 0:16:07]} c6 {[%emt 0:09:38]} 2. d4 {[%emt 0:01:25]} d5 {[%emt 0:00:06]} 3. e5 {[%emt 0:01:40]} Bf5 {[%emt 0:01:18]} 4. Nc3 {[%emt 0:00:44]} e6 {[%emt 0:03:55]} 5. g4 {[%emt 0:00:05]} Bg6 {[%emt 0:00:09]} 6. Nge2 {[%emt 0:00:06]} c5 {[%emt 0:01:22]} 7. Be3 {[%emt 0:08:46]} Ne7 {[%emt 0:05:43]} 8. h4 {[%emt 0:04:07]} h5 {[%emt 0:05:12]} 9. Nf4 {[%emt 0:00:11]} cxd4 {[%emt 0:01:08]} 10. Bxd4 {[%emt 0:01:10]} Nbc6 {[%emt 0:04:57]} 11. Nb5 {[%emt 0:11:11]} Nxd4 {[%emt 0:00:59]} 12. Nd6+ {[%emt 0:04:54]} Kd7 {[%emt 0:00:21]} 13. Qxd4 {[%emt 0:00:08]} Nc6 {[%emt 0:01:02]} 14. Qc3 {[%emt 0:07:21]} Bxd6 {[%emt 0:09:02]} 15. exd6 {[%emt 0:00:08]} d4 {[%emt 0:00:16]} 16. Qd2 {[%emt 0:03:46]} Be4 {[%emt 0:01:27]} 17. Rg1 {[%emt 0:03:27]} hxg4 {[%emt 0:01:11]} 18. Rxg4 {[%emt 0:00:56]} Rxh4 {[%emt 0:00:16]} 19. Rxh4 {[%emt 0:03:14]} Qxh4 {[%emt 0:00:09]} 20. O-O-O {[%emt 0:00:05]} Bf3 {[%emt 0:04:21]} 21. Re1 {[%emt 0:01:32]} Qg5 {[%emt 0:00:07]} 22. c4 {[%emt 0:04:40]} Rh8 {[%emt 0:04:24]} 23. Nd3 {[%emt 0:03:56]} Qxd2+ {[%emt 0:00:32]} 24. Kxd2 {[%emt 0:00:05]} Kxd6 {[%emt 0:00:11]} 25. b4 {[%emt 0:00:05]} b6 {[%emt 0:01:28]} 26. c5+ {[%emt 0:00:52]} bxc5 {[%emt 0:00:08]} 27. bxc5+ {[%emt 0:00:07] Ke5} 0-1

[Event "95th Caplin Hastings Congress"]
[Site "Hastings"]
[Date "2019.12.30"]
[Round "3.8"]
[White "Bates, Richard A"]
[Black "Hebden, Mark L"]
[Result "1-0"]
[ECO "E63"]
[WhiteElo "2342"]
[BlackElo "2433"]
[Annotator "NA"]
[PlyCount "75"]
[EventDate "2019.12.28"]
[EventType "swiss"]
[EventCountry "ENG"]
[SourceTitle "playchess.com"]
[Source "ChessBase"]
[SourceQuality "1"]
[TimeControl "40/6600+30:3000+30"]

1. d4 {[%emt 0:09:39]} Nf6 {[%emt 0:09:51]} 2. Nf3 {[%emt 0:00:15]} g6 {[%emt 0:00:16]} 3. g3 {[%emt 0:01:29]} Bg7 {[%emt 0:00:34]} 4. c4 {[%emt 0:02:12]} O-O {[%emt 0:00:23]} 5. Bg2 {[%emt 0:00:06]} d6 {[%emt 0:00:06]} 6. O-O {[%emt 0:00:42]} Nc6 {[%emt 0:01:12]} 7. Nc3 {[%emt 0:00:36]} Rb8 {[%emt 0:00:13]} 8. b3 {[%emt 0:00:38]} a6 {[%emt 0:00:19]} 9. d5 {[%emt 0:01:01]} Na5 {[%emt 0:00:55]} 10. Bg5 {[%emt 0:00:11]} c5 {[%emt 0:00:18]} 11. dxc6 {[%emt 0:00:43]} bxc6 {[%emt 0:00:12]} 12. Rc1 {[%emt 0:08:25]} c5 {[%emt 0:01:39]} 13. Qd2 {[%emt 0:03:17]} Nc6 {[%emt 0:02:36]} 14. Bh6 {[%emt 0:05:01]} Qa5 {[%emt 0:01:37]} 15. Bxg7 {[%emt 0:04:20]} Kxg7 {[%emt 0:00:08]} 16. Qb2 {[%emt 0:11:44]} Kg8 {[%emt 0:00:28]} 17. Rfd1 {[%emt 0:04:09]} Bb7 {[%emt 0:06:27]} 18. h4 {[%emt 0:20:02]} Rfd8 {[%emt 0:03:49]} 19. Ng5 {[%emt 0:01:35]} Nb4 {[%emt 0:07:40]} 20. a3 {[%emt 0:11:45]} Bxg2 {[%emt 0:01:45]} 21. Kxg2 {[%emt 0:00:09]} Nc6 {[%emt 0:00:11]} 22. Nd5 {[%emt 0:00:37]} Nxd5 {[%emt 0:02:19]} 23. cxd5 {[%emt 0:00:22]} Ne5 {[%emt 0:03:21]} 24. h5 {[%emt 0:05:29]} Qb5 {[%emt 0:18:45]} 25. Rc3 {[%emt 0:04:46]} c4 {[%emt 0:02:37]} 26. hxg6 {[%emt 0:04:02]} hxg6 {[%emt 0:00:24]} 27. b4 {[%emt 0:00:39]} a5 {[%emt 0:01:33]} 28. Qd2 {[%emt 0:01:20]} axb4 {[%emt 0:02:16]} 29. axb4 {[%emt 0:03:02]} Kf8 {[%emt 0:12:00]} 30. Qd4 {[%emt 0:04:45]} Qb6 {[%emt 0:03:42]} 31. Qh4 {[%emt 0:01:54]} Ke8 {[%emt 0:01:06]} 32. f4 {[%emt 0:00:05]} Nd7 {[%emt 0:01:52]} 33. Qh7 {[%emt 0:01:14]} Nf8 {[%emt 0:00:21]} 34. Qxf7+ {[%emt 0:00:12]} Kd7 {[%emt 0:00:06]} 35. Rxc4 {[%emt 0:00:36]} Re8 {[%emt 0:00:46]} 36. Qe6+ {[%emt 0:02:20]} Nxe6 {[%emt 0:00:30]} 37. dxe6+ {[%emt 0:00:05]} Kd8 {[%emt 0:00:07]} 38. Nf7# {[%emt 0:00:04]} 1-0

[Event "95th Caplin Hastings Congress"]
[Site "Hastings"]
[Date "2019.12.30"]
[Round "3.9"]
[White "Wadsworth, Matthew J"]
[Black "Willow, Jonah B"]
[Result "1/2-1/2"]
[ECO "A04"]
[WhiteElo "2401"]
[BlackElo "2355"]
[Annotator "NA"]
[PlyCount "81"]
[EventDate "2019.12.28"]
[EventType "swiss"]
[EventCountry "ENG"]
[SourceTitle "playchess.com"]
[Source "ChessBase"]
[SourceQuality "1"]
[TimeControl "40/6600+30:3000+30"]

1. Nf3 {[%emt 0:09:36]} c5 {[%emt 0:09:34]} 2. b3 {[%emt 0:00:04]} Nc6 {[%emt 0:00:44]} 3. Bb2 {[%emt 0:00:07]} d6 {[%emt 0:00:06]} 4. d4 {[%emt 0:00:58]} cxd4 {[%emt 0:00:49]} 5. Nxd4 {[%emt 0:00:06]} Nf6 {[%emt 0:00:52]} 6. g3 {[%emt 0:00:39]} g6 {[%emt 0:00:53]} 7. Bg2 {[%emt 0:03:22]} Nxd4 {[%emt 0:02:36]} 8. Bxd4 {[%emt 0:00:54]} Bg7 {[%emt 0:00:08]} 9. c4 {[%emt 0:01:34]} O-O {[%emt 0:00:53]} 10. Qd2 {[%emt 0:00:32]} a6 {[%emt 0:05:57]} 11. Nc3 {[%emt 0:04:09]} Qa5 {[%emt 0:02:51]} 12. Rd1 {[%emt 0:02:11]} Rb8 {[%emt 0:11:35]} 13. Bxf6 {[%emt 0:03:09]} Bxf6 {[%emt 0:00:06]} 14. Nd5 {[%emt 0:00:03]} Qxd2+ {[%emt 0:00:08]} 15. Rxd2 {[%emt 0:00:07]} Kg7 {[%emt 0:00:10]} 16. a4 {[%emt 0:04:08]} Be6 {[%emt 0:04:54]} 17. O-O {[%emt 0:00:33]} Bxd5 {[%emt 0:06:42]} 18. Rxd5 {[%emt 0:00:57]} b6 {[%emt 0:00:23]} 19. h4 {[%emt 0:06:57]} Rfc8 {[%emt 0:02:41]} 20. Bh3 {[%emt 0:01:08]} Rc5 {[%emt 0:00:55]} 21. Rc1 {[%emt 0:00:53]} a5 {[%emt 0:01:09]} 22. e4 {[%emt 0:03:27]} Rb7 {[%emt 0:01:07]} 23. Rc2 {[%emt 0:03:52]} Rbc7 {[%emt 0:01:31]} 24. Kg2 {[%emt 0:00:39]} h5 {[%emt 0:04:51]} 25. f4 {[%emt 0:03:24]} Rxd5 {[%emt 0:04:50]} 26. exd5 {[%emt 0:00:06]} Bd4 {[%emt 0:00:02]} 27. Rd2 {[%emt 0:08:05]} Bc3 {[%emt 0:00:54]} 28. Rd3 {[%emt 0:00:57]} Bb2 {[%emt 0:01:12]} 29. g4 {[%emt 0:07:24]} hxg4 {[%emt 0:02:43]} 30. Bxg4 {[%emt 0:00:02]} Bc1 {[%emt 0:04:22]} 31. f5 {[%emt 0:02:56]} g5 {[%emt 0:01:29]} 32. Rd1 {[%emt 0:05:13]} Bf4 {[%emt 0:00:38]} 33. Kf3 {[%emt 0:01:17]} Kf6 {[%emt 0:03:40]} 34. Ke4 {[%emt 0:05:16]} Rc8 {[%emt 0:02:29]} 35. Rh1 {[%emt 0:01:51]} Bd2 {[%emt 0:02:56]} 36. h5 {[%emt 0:01:05]} Rh8 {[%emt 0:00:31]} 37. h6 {[%emt 0:00:41]} Rh7 {[%emt 0:00:32]} 38. Rh5 {[%emt 0:02:20]} Be1 {[%emt 0:02:54]} 39. Be2 {[%emt 0:02:20]} Bd2 {[%emt 0:01:14]} 40. Bg4 {[%emt 0:02:20]} Be1 {[%emt 0:00:14]} 41. Be2 {[%emt 0:50:12] Ke5+} 1/2-1/2

[Event "95th Caplin Hastings Congress"]
[Site "Hastings"]
[Date "2019.12.30"]
[Round "3.11"]
[White "Gormally, Daniel W"]
[Black "Snape, Ian L"]
[Result "1-0"]
[ECO "B04"]
[WhiteElo "2497"]
[BlackElo "2196"]
[Annotator "ChessBase"]
[PlyCount "103"]
[EventDate "2019.12.28"]
[EventType "swiss"]
[EventCountry "ENG"]
[SourceTitle "playchess.com"]
[Source "ChessBase"]
[SourceQuality "1"]
[TimeControl "40/6600+30:3000+30"]

1. e4 {[%emt 0:10:26]} Nf6 {[%emt 0:09:36]} 2. e5 {[%emt 0:00:32]} Nd5 {[%emt 0:00:04]} 3. d4 {[%emt 0:00:05]} d6 {[%emt 0:00:05]} 4. Nf3 {[%emt 0:00:04]} Nb6 {[%emt 0:02:06]} 5. Be2 {[%emt 0:02:49]} g6 {[%emt 0:01:04]} 6. O-O {[%emt 0:01:47]} Bg7 {[%emt 0:01:15]} 7. exd6 {[%emt 0:01:14]} cxd6 {[%emt 0:02:25]} 8. c3 {[%emt 0:02:59]} O-O {[%emt 0:00:00]} 9. a4 {[%emt 0:01:28]} Nc6 {[%emt 0:00:00]} 10. d5 {[%emt 0:04:27]} Nb8 {[%emt 0:00:00]} 11. a5 {[%emt 0:02:42]} N6d7 {[%emt 0:00:00]} 12. Re1 {[%emt 0:00:25]} Nf6 {[%emt 0:00:00]} 13. c4 {[%emt 0:07:11]} Na6 {[%emt 0:00:00]} 14. Nc3 {[%emt 0:01:39]} Bg4 {[%emt 0:06:19]} 15. Be3 {[%emt 0:04:02]} Nd7 {[%emt 0:07:03]} 16. Nd4 {[%emt 0:00:22]} Bxe2 {[%emt 0:00:37]} 17. Qxe2 {[%emt 0:04:21]} Re8 {[%emt 0:03:18]} 18. Ncb5 {[%emt 0:05:24]} Nac5 {[%emt 0:06:17]} 19. b4 {[%emt 0:01:34]} a6 {[%emt 0:02:10]} 20. bxc5 {[%emt 0:01:11]} dxc5 {[%emt 0:00:09]} 21. Rab1 {[%emt 0:07:20]} axb5 {[%emt 0:04:26]} 22. Nxb5 {[%emt 0:00:22]} Qxa5 {[%emt 0:08:06]} 23. Bf4 {[%emt 0:05:53]} Rac8 {[%emt 0:05:46]} 24. h3 {[%emt 0:04:03]} h6 {[%emt 0:04:08]} 25. Nc7 {[%emt 0:01:09]} Rxc7 {[%emt 0:00:21]} 26. Rb5 {[%emt 0:03:55]} Qxb5 {[%emt 0:04:15]} 27. cxb5 {[%emt 0:00:00]} Rcc8 {[%emt 0:05:53]} 28. d6 {[%emt 0:02:10]} e6 {[%emt 0:08:13]} 29. Rc1 {[%emt 0:04:28]} b6 {[%emt 0:01:07]} 30. Rc2 {[%emt 0:02:43]} e5 {[%emt 0:04:15]} 31. Be3 {[%emt 0:01:05]} Re6 {[%emt 0:00:56]} 32. Qd2 {[%emt 0:01:29]} Bf8 {[%emt 0:02:23]} 33. Bxh6 {[%emt 0:07:50]} Rxd6 {[%emt 0:00:00]} 34. Qg5 {[%emt 0:01:18]} Bxh6 {[%emt 0:00:00]} 35. Qxh6 {[%emt 0:03:52]} c4 {[%emt 0:03:45]} 36. f4 {[%emt 0:00:00]} Rf6 {[%emt 0:10:19]} 37. f5 {[%emt 0:03:33]} gxf5 {[%emt 0:14:42]} 38. Qg5+ {[%emt 0:00:27]} Kf8 {[%emt 0:04:42]} 39. Rd2 {[%emt 0:01:00]} c3 {[%emt 0:00:08]} 40. Rxd7 {[%emt 0:02:08]} c2 {[%emt 0:00:22]} 41. Qc1 {[%emt 0:50:03]} e4 {[%emt 0:53:04]} 42. Rd2 {[%emt 0:06:48]} e3 {[%emt 0:01:07]} 43. Rxc2 {[%emt 0:00:04]} Rxc2 {[%emt 0:00:30]} 44. Qxc2 {[%emt 0:00:05]} Re6 {[%emt 0:00:07]} 45. Qxf5 {[%emt 0:02:27]} Ke7 {[%emt 0:00:03]} 46. Qg5+ {[%emt 0:04:19]} f6 {[%emt 0:00:36]} 47. Qg7+ {[%emt 0:00:03]} Kd6 {[%emt 0:00:14]} 48. Kf1 {[%emt 0:00:04]} f5 {[%emt 0:00:00]} 49. Qd4+ {[%emt 0:00:00]} Ke7 {[%emt 0:00:00]} 50. Ke2 {[%emt 0:00:00]} Kf7 {[%emt 0:00:00]} 51. Qf4 {[%emt 0:00:00]} Kg6 {[%emt 0:00:00]} 52. h4 {[%emt 0:00:00]} 1-0

[Event "95th Caplin Hastings Congress"]
[Site "Hastings"]
[Date "2019.12.30"]
[Round "3.12"]
[White "Brozel, Sacha"]
[Black "Flear, Glenn C"]
[Result "0-1"]
[ECO "D27"]
[WhiteElo "2188"]
[BlackElo "2440"]
[Annotator "NA"]
[PlyCount "38"]
[EventDate "2019.12.28"]
[EventType "swiss"]
[EventCountry "ENG"]
[SourceTitle "playchess.com"]
[Source "ChessBase"]
[SourceQuality "1"]
[TimeControl "40/6600+30:3000+30"]

1. c4 {[%emt 0:09:45]} e6 {[%emt 0:10:23]} 2. Nf3 {[%emt 0:00:16]} d5 {[%emt 0:00:16]} 3. d4 {[%emt 0:00:38]} c6 {[%emt 0:02:31]} 4. e3 {[%emt 0:04:59]} Nf6 {[%emt 0:03:02]} 5. Bd3 {[%emt 0:03:40]} dxc4 {[%emt 0:02:18]} 6. Bxc4 {[%emt 0:00:17]} c5 {[%emt 0:00:08]} 7. O-O {[%emt 0:03:53]} a6 {[%emt 0:00:22]} 8. Bb3 {[%emt 0:04:19]} Nc6 {[%emt 0:07:59]} 9. Nc3 {[%emt 0:05:33]} b5 {[%emt 0:01:55]} 10. d5 {[%emt 0:08:53]} exd5 {[%emt 0:02:38]} 11. Nxd5 {[%emt 0:05:43]} c4 {[%emt 0:06:00]} 12. Nxf6+ {[%emt 0:00:49]} Qxf6 {[%emt 0:00:40]} 13. Bc2 {[%emt 0:00:43]} Bg4 {[%emt 0:08:33]} 14. Be4 {[%emt 0:04:01]} Rd8 {[%emt 0:01:21]} 15. Qc2 {[%emt 0:04:07]} Nb4 {[%emt 0:04:58]} 16. Qb1 {[%emt 0:02:39]} Bc5 {[%emt 0:25:12]} 17. Nd4 {[%emt 0:11:13]} O-O {[%emt 0:04:40]} 18. Bxh7+ {[%emt 0:05:37]} Kh8 {[%emt 0:00:24]} 19. Bf5 {[%emt 0:07:44]} Rxd4 {[%emt 0:00:34]} 0-1

[Event "95th Caplin Hastings Congress"]
[Site "Hastings"]
[Date "2019.12.30"]
[Round "3.13"]
[White "Fishbein, Alexander"]
[Black "Bin-Suhayl, Ieysaa"]
[Result "1-0"]
[ECO "E20"]
[WhiteElo "2435"]
[BlackElo "2187"]
[Annotator "NA"]
[PlyCount "55"]
[EventDate "2019.12.28"]
[EventType "swiss"]
[EventCountry "ENG"]
[SourceTitle "playchess.com"]
[Source "ChessBase"]
[SourceQuality "1"]
[TimeControl "40/6600+30:3000+30"]

1. d4 {[%emt 0:09:36]} Nf6 {[%emt 0:09:38]} 2. c4 {[%emt 0:00:06]} e6 {[%emt 0:01:16]} 3. Nc3 {[%emt 0:02:09]} Bb4 {[%emt 0:00:22]} 4. Nf3 {[%emt 0:05:04]} c5 {[%emt 0:01:50]} 5. g3 {[%emt 0:01:08]} O-O {[%emt 0:06:45]} 6. Bg2 {[%emt 0:01:42]} d5 {[%emt 0:08:01]} 7. cxd5 {[%emt 0:04:58]} Nxd5 {[%emt 0:01:27]} 8. Bd2 {[%emt 0:00:55]} Nc6 9. Nxd5 {[%emt 0:10:33]} Qxd5 {[%emt 0:09:11]} 10. Bxb4 {[%emt 0:29:27]} cxb4 {[%emt 0:37:52]} 11. O-O {[%emt 0:00:00]} Rd8 {[%emt 0:04:09]} 12. e3 {[%emt 0:00:00]} Qd6 {[%emt 0:00:19]} 13. Rc1 {[%emt 0:00:00]} Bd7 {[%emt 0:06:40]} 14. Ng5 {[%emt 0:00:00]} Qe7 {[%emt 0:01:07]} 15. Qh5 {[%emt 0:00:00]} h6 {[%emt 0:00:33]} 16. Ne4 {[%emt 0:00:00]} b6 {[%emt 0:06:31]} 17. Rc2 {[%emt 0:00:00]} Rac8 {[%emt 0:00:22]} 18. Rfc1 {[%emt 0:00:00]} e5 {[%emt 0:09:40]} 19. d5 {[%emt 0:04:19]} Na5 {[%emt 0:04:08]} 20. d6 {[%emt 0:06:28]} Qe6 {[%emt 0:02:01]} 21. Rc7 {[%emt 0:03:59]} f5 {[%emt 0:00:00]} 22. Bh3 {[%emt 0:05:51]} Rxc7 {[%emt 0:00:00]} 23. dxc7 {[%emt 0:00:11]} Rc8 {[%emt 0:00:00]} 24. Bxf5 {[%emt 0:02:33]} Qe7 {[%emt 0:06:10]} 25. Nf6+ {[%emt 0:01:39]} gxf6 {[%emt 0:00:31]} 26. Qg4+ {[%emt 0:00:17]} Kf8 {[%emt 0:00:22]} 27. Bxd7 {[%emt 0:00:05]} f5 {[%emt 0:00:13]} 28. Qxf5+ {[%emt 0:00:04]} 1-0

[Event "95th Caplin Hastings Congress"]
[Site "Hastings"]
[Date "2019.12.30"]
[Round "3.14"]
[White "Merry, Alan B"]
[Black "Graham, David B"]
[Result "1-0"]
[ECO "E09"]
[WhiteElo "2420"]
[BlackElo "2152"]
[Annotator "NA"]
[PlyCount "99"]
[EventDate "2019.12.28"]
[EventType "swiss"]
[EventCountry "ENG"]
[SourceTitle "playchess.com"]
[Source "ChessBase"]
[SourceQuality "1"]
[TimeControl "40/6600+30:3000+30"]

1. d4 {[%emt 0:09:31]} d5 {[%emt 0:09:41]} 2. c4 {[%emt 0:00:04]} e6 {[%emt 0:00:04]} 3. Nf3 {[%emt 0:00:13]} Nf6 {[%emt 0:00:08]} 4. g3 {[%emt 0:00:03]} Be7 {[%emt 0:01:12]} 5. Bg2 {[%emt 0:00:04]} O-O {[%emt 0:00:21]} 6. O-O {[%emt 0:00:06]} Nbd7 {[%emt 0:01:27]} 7. Qc2 {[%emt 0:01:09]} c6 {[%emt 0:11:15]} 8. Nbd2 {[%emt 0:00:04]} Qc7 {[%emt 0:05:03]} 9. e4 {[%emt 0:01:29]} dxe4 {[%emt 0:08:06]} 10. Nxe4 {[%emt 0:00:15]} Nxe4 {[%emt 0:05:07]} 11. Qxe4 {[%emt 0:00:04]} Nf6 {[%emt 0:07:36]} 12. Qc2 {[%emt 0:00:06]} b6 {[%emt 0:02:27]} 13. Bf4 {[%emt 0:00:59]} Bd6 {[%emt 0:01:35]} 14. Bxd6 {[%emt 0:01:37]} Qxd6 {[%emt 0:00:10]} 15. Rfd1 {[%emt 0:03:31]} Bb7 {[%emt 0:02:02]} 16. c5 {[%emt 0:02:51]} Qc7 {[%emt 0:03:09]} 17. Rac1 {[%emt 0:01:34]} Rfd8 {[%emt 0:07:56]} 18. Ne5 {[%emt 0:01:26]} Rac8 {[%emt 0:07:04]} 19. b4 {[%emt 0:20:30]} Nd5 {[%emt 0:04:59]} 20. Qb3 {[%emt 0:01:08]} f6 {[%emt 0:05:28]} 21. Nc4 {[%emt 0:07:28]} b5 {[%emt 0:04:41]} 22. Nd6 {[%emt 0:01:17]} Rxd6 {[%emt 0:00:19]} 23. cxd6 {[%emt 0:00:04]} Qxd6 {[%emt 0:00:05]} 24. a4 {[%emt 0:02:39]} a6 {[%emt 0:10:37]} 25. Bxd5 {[%emt 0:05:29]} exd5 {[%emt 0:00:15]} 26. Re1 {[%emt 0:00:51]} Rf8 {[%emt 0:04:41]} 27. Qc3 {[%emt 0:02:35]} bxa4 {[%emt 0:03:43]} 28. Qc5 {[%emt 0:00:25]} Qxc5 {[%emt 0:02:09]} 29. bxc5 {[%emt 0:00:04]} Bc8 {[%emt 0:03:41]} 30. Ra1 {[%emt 0:03:38]} Bf5 {[%emt 0:00:25]} 31. Rxa4 {[%emt 0:00:30]} Bd3 {[%emt 0:00:07]} 32. Ra3 {[%emt 0:02:25]} Bb5 {[%emt 0:00:10]} 33. Rae3 {[%emt 0:00:31]} g6 {[%emt 0:05:06]} 34. Re8 {[%emt 0:01:37]} a5 {[%emt 0:01:48]} 35. R1e7 {[%emt 0:00:45]} Rxe8 {[%emt 0:00:14]} 36. Rxe8+ {[%emt 0:00:04]} Kf7 {[%emt 0:00:48]} 37. Ra8 {[%emt 0:00:05]} a4 {[%emt 0:00:09]} 38. Ra7+ {[%emt 0:00:05]} Ke6 {[%emt 0:00:26]} 39. Rxh7 {[%emt 0:00:30]} Kf5 {[%emt 0:00:53]} 40. f3 {[%emt 0:00:26]} g5 {[%emt 0:01:36]} 41. h3 {[%emt 0:51:14]} Kg6 {[%emt 0:51:36]} 42. Ra7 {[%emt 0:00:08]} f5 {[%emt 0:00:26]} 43. f4 {[%emt 0:01:18]} gxf4 {[%emt 0:00:49]} 44. gxf4 {[%emt 0:00:46]} Kh6 {[%emt 0:00:42]} 45. Kf2 {[%emt 0:00:07]} Kg6 {[%emt 0:00:12]} 46. Ke3 {[%emt 0:00:23]} Kh5 {[%emt 0:00:40]} 47. Rh7+ {[%emt 0:02:48]} Kg6 {[%emt 0:00:05]} 48. Rb7 {[%emt 0:00:12]} Kh5 {[%emt 0:02:16]} 49. Rxb5 {[%emt 0:00:45]} cxb5 {[%emt 0:00:10]} 50. Kd3 {[%emt 0:00:03]} 1-0